bitfinex-derivatives/quotes_BNBF0:USTF0_20250211
["timestamp","ask_amount","ask_price","bid_price","bid_amount"]
[1739313048365,1.725,640.08,638.79,0.31309193]
[1739313048567,1.33378769,640.07,638.79,0.31309193]
[1739313048767,1.33378769,640.06,638.79,0.31309193]
[1739313049065,1.33378943,640.05,638.79,0.31309193]
[1739313049269,1.725,640.08,638.79,0.31309193]
[1739313049468,1.33414731,640.07,638.79,0.31309193]
[1739313049767,1.33414731,640.06,638.79,0.31309193]
[1739313049967,1.725,640.08,638.79,0.31309193]
[1739313056068,1.33679651,640.07,638.79,0.31309193]
[1739313056270,1.33679651,640.06,638.79,0.31309193]
[1739313056470,1.33679651,640.05,638.79,0.31309193]
[1739313056768,1.725,640.08,638.79,0.31309193]
[1739313056965,1.33738927,640.07,638.79,0.31309193]
[1739313057165,1.33738927,640.06,638.79,0.31309193]
[1739313057370,1.33738927,640.05,638.79,0.31309193]
[1739313057665,1.067,640.08,638.79,0.31309193]
[1739313057971,1.33798508,640.07,638.79,0.31309193]
[1739313058171,1.33798508,640.06,638.79,0.31309193]
[1739313058372,1.33798508,640.05,638.81,1.13057641]
[1739313058673,1.33798508,640.04,638.83,0.31307233]
[1739313058866,1.33798508,640.03,638.83,0.31307233]
[1739313059165,1.33798508,640.02,638.83,0.31307233]
[1739313059371,1.33798508,640.01,638.83,0.31307233]
[1739313059671,1.33798508,640.0,638.83,0.31307233]
[1739313059867,1.33934781,639.99,638.87,1.13057641]
[1739313060074,0.658,640.04,638.89,0.31304293]
[1739313060273,1.33929646,640.03,638.89,0.31304293]
[1739313060472,1.33929646,640.02,638.89,0.31304293]
[1739313060773,1.33929162,640.01,638.89,0.31304293]
[1739313061072,1.788,640.04,638.89,0.31304293]
[1739313061273,1.33928303,640.03,638.89,0.31304293]
[1739313061471,1.33928303,640.02,638.89,0.31304293]
[1739313061671,1.3399406,640.01,638.89,0.31304293]
[1739313061973,1.788,640.04,638.89,0.31304293]
[1739313062172,1.34003639,640.03,638.89,0.31304293]
[1739313062365,1.34003639,640.02,638.89,0.31304293]
[1739313062567,1.34003639,640.01,638.89,0.31304293]
[1739313062773,1.34003639,640.0,638.89,0.31304293]
[1739313063075,1.788,640.04,638.89,0.31304293]
[1739313063272,1.34086047,640.03,638.89,0.31304293]
[1739313063473,1.34170694,640.02,638.89,0.31304293]
[1739313063672,1.788,640.04,638.89,0.31304293]
[1739313063673,1.34170694,640.01,638.89,0.31304293]
[1739313063973,1.34170694,640.0,638.89,0.31304293]
[1739313064173,1.34170694,639.99,638.89,0.31304293]
[1739313064373,1.3423122,639.98,638.89,0.31304293]
[1739313064574,1.788,640.04,638.89,0.31304293]
[1739313064771,1.34231222,640.03,638.89,0.31304293]
[1739313064976,1.34231222,640.02,639.02,1.13057641]
[1739313065175,1.34231222,640.01,639.03,0.31297435]
[1739313065371,1.3428788,640.0,639.03,0.31297435]
[1739313065571,1.3428788,639.99,639.03,0.31297435]
[1739313065876,1.3428788,639.98,639.03,0.31297435]
[1739313066072,1.3428788,639.97,639.03,0.31297435]
[1739313066272,1.3432438,639.96,639.03,0.31297435]
[1739313066473,1.788,640.04,639.03,0.31297435]
[1739313066776,0.771,639.96,639.03,0.31297435]
[1739313067375,1.34358969,639.95,639.03,0.31297435]
[1739313067572,0.771,639.96,639.03,0.31297435]
[1739313067874,0.771,639.96,639.11,1.13057641]
[1739313068071,0.771,639.96,639.12,0.31293027]
[1739313068477,1.34379374,639.95,639.12,0.31293027]
[1739313068676,0.771,639.96,639.12,0.31293027]
[1739313068879,1.34380289,639.95,639.12,0.31293027]
[1739313069075,0.771,639.96,639.12,0.31293027]
[1739313070079,1.34389858,639.95,639.12,0.31293027]
[1739313070279,0.771,639.96,639.12,0.31293027]
[1739313070581,0.771,639.96,639.16,1.13057641]
[1739313070774,0.771,639.96,639.17,0.31290579]
[1739313071081,1.34393374,639.95,639.17,0.31290579]
[1739313071380,0.771,639.96,639.17,0.31290579]
[1739313071680,1.34392999,639.95,639.17,0.31290579]
[1739313071979,0.771,639.96,639.17,0.31290579]
[1739313072180,1.34392929,639.95,639.17,0.31290579]
[1739313072479,1.34392929,639.94,639.17,0.31290579]
[1739313072677,1.34392929,639.93,639.17,0.31290579]
[1739313072881,1.34392929,639.92,639.17,0.31290579]
[1739313073083,1.34392929,639.91,639.17,0.31290579]
[1739313073281,1.34409675,639.9,639.17,0.31290579]
[1739313073582,1.594,639.96,639.23,1.13057641]
[1739313073782,1.34409675,639.95,639.24,0.31287153]
[1739313073980,1.34409675,639.94,639.24,0.31287153]
[1739313074181,1.34409675,639.93,639.24,0.31287153]
[1739313074376,1.34409675,639.92,639.24,0.31287153]
[1739313074579,1.34409675,639.91,639.24,0.31287153]
[1739313074784,1.34409675,639.9,639.24,0.31287153]
[1739313074983,1.594,639.96,639.24,0.31287153]
[1739313075181,1.34419906,639.95,639.24,0.31287153]
[1739313075382,1.34419906,639.94,639.24,0.31287153]
[1739313075683,1.34419906,639.93,639.24,0.31287153]
[1739313075882,1.594,639.96,639.26,1.13057641]
[1739313076182,1.34434479,639.95,639.26,1.13057641]
[1739313076384,1.34434479,639.94,639.26,1.13057641]
[1739313076584,1.34434479,639.93,639.26,1.13057641]
[1739313076783,1.34434479,639.92,639.26,1.13057641]
[1739313076980,1.34434479,639.91,639.26,1.13057641]
[1739313077178,1.34434479,639.9,639.26,1.13057641]
[1739313077379,1.34434479,639.89,639.26,1.13057641]
[1739313077585,1.34434479,639.88,639.26,1.13057641]
[1739313077782,1.34434479,639.87,639.26,1.13057641]
[1739313077986,1.34434479,639.86,639.26,1.13057641]
[1739313078180,1.34434479,639.85,639.26,1.13057641]
[1739313078385,1.34434479,639.84,639.33,1.13057641]
[1739313078587,1.031,639.84,639.33,1.13057641]
[1739313079387,1.34502796,639.83,639.33,1.13057641]
[1739313079682,1.031,639.84,639.33,1.13057641]
[1739313079886,1.34502954,639.83,639.33,1.13057641]
[1739313080087,1.031,639.84,639.33,1.13057641]
[1739313080587,1.34527272,639.83,639.33,1.13057641]
[1739313080788,1.34527272,639.82,639.33,1.13057641]
[1739313080987,1.34527272,639.81,639.33,1.13057641]
[1739313081186,1.34527272,639.8,639.33,1.13057641]
[1739313081483,1.34527272,639.79,639.33,1.13057641]
[1739313081683,1.34527272,639.78,639.33,1.13057641]
[1739313081887,1.34527272,639.77,639.33,1.13057641]
[1739313082088,1.34527272,639.76,639.33,1.13057641]
[1739313082287,1.34527272,639.75,639.33,1.13057641]
[1739313082489,1.34527272,639.74,639.33,1.13057641]
[1739313082788,1.34527272,639.73,639.33,1.13057641]
[1739313082988,1.34527272,639.72,639.33,1.13057641]
[1739313083189,1.34527272,639.71,639.24,0.31287153]
[1739313083383,1.34527272,639.7,639.24,0.31287153]
[1739313083582,1.031,639.84,639.24,0.31287153]
[1739313083784,1.34580218,639.83,639.24,0.31287153]
[1739313084090,1.34580218,639.82,639.24,0.31287153]
[1739313084384,1.34580218,639.81,639.24,0.31287153]
[1739313084588,1.34580218,639.8,639.24,0.31287153]
[1739313084788,1.34580218,639.79,639.24,0.31287153]
[1739313085089,1.34597417,639.78,639.24,0.31287153]
[1739313085389,1.031,639.84,639.24,0.31287153]
[1739313085390,1.34597417,639.77,639.24,0.31287153]
[1739313085588,1.34597417,639.76,639.24,0.31287153]
[1739313085784,1.34597417,639.75,639.24,0.31287153]
[1739313085982,1.34597417,639.74,639.24,0.31287153]
[1739313086283,1.34597417,639.73,639.24,0.31287153]
[1739313086489,0.865,639.76,639.24,0.31287153]
[1739313086688,1.34666027,639.75,639.24,0.31287153]
[1739313086987,1.34666027,639.74,639.24,0.31287153]
[1739313087188,1.34666027,639.73,639.24,0.31287153]
[1739313087389,1.34666027,639.72,639.24,0.31287153]
[1739313087583,1.34666027,639.71,639.24,0.31287153]
[1739313087787,1.34666027,639.7,639.24,0.31287153]
[1739313087986,1.34666027,639.69,639.24,0.31287153]
[1739313088189,1.34666027,639.68,639.24,0.31287153]
[1739313088389,1.34666027,639.67,639.24,0.31287153]
[1739313088583,0.865,639.76,639.24,0.31287153]
[1739313088783,1.34761359,639.75,639.24,0.31287153]
[1739313088988,1.34761359,639.74,639.24,0.31287153]
[1739313089189,1.34761359,639.73,639.24,0.31287153]
[1739313089489,1.34761359,639.72,639.24,0.31287153]
[1739313089790,1.34761359,639.71,639.24,0.31287153]
[1739313090088,1.34761359,639.7,639.24,0.31287153]
[1739313090289,1.34761359,639.69,639.24,0.31287153]
[1739313090589,1.34761359,639.68,639.24,0.31287153]
[1739313090790,1.34761359,639.67,639.24,0.31287153]
[1739313090990,1.34761359,639.66,639.24,0.31287153]
[1739313091185,0.865,639.76,639.24,0.31287153]
[1739313091390,1.34768097,639.75,639.24,0.31287153]
[1739313091590,1.34768097,639.74,639.24,0.31287153]
[1739313091784,1.34768097,639.73,639.24,0.31287153]
[1739313091989,0.865,639.76,639.24,0.31287153]
[1739313091990,1.34768097,639.72,639.24,0.31287153]
[1739313092186,1.34768097,639.71,639.24,0.31287153]
[1739313092389,1.34768097,639.7,639.24,0.31287153]
[1739313092585,1.34768097,639.69,639.24,0.31287153]
[1739313092785,1.34768097,639.68,639.24,0.31287153]
[1739313092986,1.34768097,639.67,639.24,0.31287153]
[1739313093292,0.865,639.76,639.24,0.31287153]
[1739313093492,1.34738327,639.75,639.24,0.31287153]
[1739313093700,1.34738327,639.74,639.24,0.31287153]
[1739313093900,1.34738327,639.73,639.24,0.31287153]
[1739313094197,1.34738327,639.72,639.24,0.31287153]
[1739313094399,1.34738327,639.71,639.24,0.31287153]
[1739313094597,1.34738327,639.7,639.24,0.31287153]
[1739313094798,0.865,639.76,639.24,0.31287153]
[1739313094992,1.34716375,639.75,639.24,0.31287153]
[1739313095194,0.865,639.76,639.24,0.31287153]
[1739313095195,1.34716375,639.74,639.24,0.31287153]
[1739313095390,0.865,639.76,639.24,0.31287153]
[1739313101599,1.34729968,639.75,639.24,0.31287153]
[1739313101802,0.865,639.76,639.24,0.31287153]
[1739313106405,0.658,639.75,639.24,0.31287153]
[1739313107901,1.653,639.75,639.24,0.31287153]
[1739313118219,0.995,639.75,639.24,0.31287153]
[1739313119418,0.658,639.74,639.24,0.31287153]
[1739313125321,1.383,639.74,639.24,0.31287153]
[1739313133226,1.34934076,639.73,639.24,0.31287153]
[1739313133427,1.34949197,639.72,639.24,0.31287153]
[1739313133624,1.34949197,639.71,639.24,0.31287153]
[1739313133830,1.34949197,639.7,639.24,0.31287153]
[1739313134129,0.725,639.74,639.24,0.31287153]
[1739313134429,1.34950603,639.73,639.24,0.31287153]
[1739313134629,1.34950603,639.72,639.24,0.31287153]
[1739313134824,1.34950603,639.71,639.24,0.31287153]
[1739313135023,1.34950603,639.7,639.24,0.31287153]
[1739313135227,0.658,639.73,639.24,0.31287153]
[1739313135423,1.34971714,639.72,639.24,0.31287153]
[1739313135624,1.34971714,639.71,639.24,0.31287153]
[1739313135824,0.658,639.73,639.24,0.31287153]
[1739313136031,1.34972368,639.72,639.24,0.31287153]
[1739313136229,1.34972368,639.71,639.24,0.31287153]
[1739313136528,1.34972368,639.7,639.24,0.31287153]
[1739313136730,0.658,639.73,639.24,0.31287153]
[1739313136925,1.3497922,639.72,639.24,0.31287153]
[1739313137128,1.3497922,639.71,639.24,0.31287153]
[1739313137326,1.3497922,639.7,639.24,0.31287153]
[1739313137527,0.658,639.73,639.24,0.31287153]
[1739313137729,1.34983543,639.72,639.24,0.31287153]
[1739313137926,1.34983543,639.71,639.24,0.31287153]
[1739313138129,1.34983543,639.7,639.24,0.31287153]
[1739313138329,0.658,639.73,639.24,0.31287153]
[1739313138532,1.34986741,639.72,639.24,0.31287153]
[1739313138732,1.34986741,639.71,639.24,0.31287153]
[1739313138933,1.34986741,639.7,639.24,0.31287153]
[1739313139228,1.34986741,639.69,639.24,0.31287153]
[1739313139429,0.658,639.73,639.24,0.31287153]
[1739313139728,1.34990876,639.72,639.24,0.31287153]
[1739313139932,1.34990876,639.71,639.24,0.31287153]
[1739313140132,1.34990876,639.7,639.24,0.31287153]
[1739313140333,1.34990876,639.69,639.24,0.31287153]
[1739313140535,1.34995238,639.68,639.24,0.31287153]
[1739313140833,1.34995238,639.67,639.24,0.31287153]
[1739313141034,1.34995238,639.66,639.24,0.31287153]
[1739313141334,1.35003576,639.65,639.24,0.31287153]
[1739313141634,1.35003576,639.64,639.24,0.31287153]
[1739313141833,0.658,639.73,639.24,0.31287153]
[1739313142034,1.34992139,639.72,639.24,0.31287153]
[1739313142229,1.34992139,639.71,639.24,0.31287153]
[1739313142427,1.34992139,639.7,639.24,0.31287153]
[1739313142632,1.34992139,639.69,639.24,0.31287153]
[1739313142828,1.34992139,639.68,639.24,0.31287153]
[1739313143032,1.34992139,639.67,639.24,0.31287153]
[1739313143233,1.34992139,639.66,639.24,0.31287153]
[1739313143433,1.34992139,639.65,639.24,0.31287153]
[1739313143628,1.34992139,639.64,638.92,1.13057641]
[1739313143832,1.34992139,639.63,639.01,1.13057641]
[1739313144035,1.34992139,639.62,639.01,1.13057641]
[1739313144334,1.35002402,639.61,639.01,1.13057641]
[1739313144531,1.35002402,639.6,639.01,1.13057641]
[1739313144829,1.35002402,639.59,639.01,1.13057641]
[1739313145034,1.35002402,639.58,639.01,1.13057641]
[1739313145233,1.35002402,639.57,639.01,1.13057641]
[1739313145430,1.35002402,639.56,639.01,1.13057641]
[1739313145631,1.35002402,639.55,638.87,1.13057641]
[1739313145832,1.35002402,639.54,638.88,0.31304783]
[1739313146027,0.815,639.67,638.88,0.31304783]
[1739313146227,1.34936296,639.66,638.88,0.31304783]
[1739313146533,1.34936296,639.65,638.88,0.31304783]
[1739313146734,1.34936296,639.64,638.88,0.31304783]
[1739313146934,1.34936296,639.63,638.88,0.31304783]
[1739313147128,1.34936296,639.62,638.88,0.31304783]
[1739313147327,1.34936296,639.61,638.88,0.31304783]
[1739313147529,1.34936296,639.6,638.88,0.31304783]
[1739313147733,1.34936296,639.59,638.88,0.31304783]
[1739313147930,0.815,639.67,638.88,0.31304783]
[1739313147931,1.34936296,639.58,638.88,0.31304783]
[1739313148229,1.34879634,639.57,638.88,0.31304783]
[1739313148430,1.34879634,639.56,638.88,0.31304783]
[1739313148636,1.34879634,639.55,638.88,0.31304783]
[1739313148933,1.34879634,639.54,638.88,0.31304783]
[1739313149134,1.34879634,639.53,638.88,0.31304783]
[1739313149335,1.34879634,639.52,638.88,0.31304783]
[1739313149530,0.815,639.67,638.88,0.31304783]
[1739313149731,1.34825354,639.66,638.88,0.31304783]
[1739313150033,1.34825354,639.65,638.88,0.31304783]
[1739313150234,1.34825354,639.64,638.88,0.31304783]
[1739313150435,1.34825354,639.63,638.88,0.31304783]
[1739313150636,1.34825354,639.62,638.88,0.31304783]
[1739313150936,1.34825354,639.61,638.88,0.31304783]
[1739313151135,1.34825354,639.6,638.88,0.31304783]
[1739313151336,1.34825354,639.59,638.88,0.31304783]
[1739313151636,1.34825354,639.58,638.88,0.31304783]
[1739313151837,1.34825354,639.57,638.88,0.31304783]
[1739313152036,1.34825354,639.56,638.88,0.31304783]
[1739313152233,1.34776461,639.55,638.88,0.31304783]
[1739313152434,1.34776461,639.54,638.88,0.31304783]
[1739313152635,1.34756862,639.53,638.88,0.31304783]
[1739313152831,1.34756862,639.52,638.88,0.31304783]
[1739313153032,0.815,639.67,638.88,0.31304783]
[1739313153232,0.798,639.54,638.88,0.31304783]
[1739313153433,1.34756862,639.53,638.89,1.63274881]
[1739313153633,1.34756862,639.52,638.89,1.63274881]
[1739313153837,0.798,639.54,638.89,1.63274881]
[1739313154040,1.34733827,639.53,638.89,1.63274881]
[1739313154241,0.798,639.54,638.89,1.63274881]
[1739313154437,1.34729238,639.53,638.89,1.63274881]
[1739313154633,1.34716325,639.52,638.89,1.63274881]
[1739313154839,0.798,639.54,638.89,1.63274881]
[1739313155139,1.34716379,639.53,638.89,1.63274881]
[1739313155341,0.658,639.53,638.89,1.63274881]
[1739313169457,1.802,639.53,638.89,1.63274881]
[1739313174165,1.144,639.53,638.89,1.63274881]
[1739313175464,0.658,639.52,638.89,1.63274881]
[1739313176267,0.658,639.52,638.99,1.13057641]
[1739313178563,0.658,639.52,638.92,1.63243607]
[1739313178760,0.658,639.52,638.93,0.31302333]
[1739313182870,0.658,639.52,639.15,1.13057641]
[1739313185176,0.658,639.52,638.98,1.13057641]
[1739313185471,0.658,639.52,638.99,0.31299394]
[1739313187774,1.498,639.52,638.99,0.31299394]
[1739313191583,0.84,639.52,638.99,0.31299394]
[1739313221903,0.658,639.51,638.99,0.31299394]
[1739313223407,1.663,639.51,638.99,0.31299394]
[1739313224704,1.34780977,639.5,638.99,0.31299394]
[1739313224905,1.663,639.51,638.99,0.31299394]
[1739313226910,1.34777104,639.5,638.99,0.31299394]
[1739313227110,1.34777104,639.49,638.99,0.31299394]
[1739313227313,1.347791,639.48,638.99,0.31299394]
[1739313227511,1.663,639.51,638.99,0.31299394]
[1739313227811,1.34775955,639.5,638.99,0.31299394]
[1739313228012,1.34775955,639.49,638.99,0.31299394]
[1739313228208,1.34775955,639.48,638.99,0.31299394]
[1739313228408,1.663,639.51,638.99,0.31299394]
[1739313228712,1.34771822,639.5,638.99,0.31299394]
[1739313228907,1.34771822,639.49,638.99,0.31299394]
[1739313229111,1.34771822,639.48,638.99,0.31299394]
[1739313229306,1.663,639.51,638.99,0.31299394]
[1739313229511,1.34767218,639.5,638.99,0.31299394]
[1739313229708,1.34767218,639.49,638.99,0.31299394]
[1739313230014,1.34767218,639.48,638.99,0.31299394]
[1739313230208,1.34767218,639.47,638.99,0.31299394]
[1739313230411,1.34767218,639.46,638.99,0.31299394]
[1739313230713,1.34767218,639.45,638.99,0.31299394]
[1739313230907,1.34767218,639.44,638.99,0.31299394]
[1739313231106,1.663,639.51,638.99,0.31299394]
[1739313231306,1.3476193,639.5,638.99,0.31299394]
[1739313231613,1.663,639.51,638.99,0.31299394]
[1739313231614,1.3476193,639.49,638.99,0.31299394]
[1739313231815,1.3476193,639.48,638.99,0.31299394]
[1739313232115,1.3476193,639.47,638.99,0.31299394]
[1739313232314,1.3476193,639.46,638.99,0.31299394]
[1739313232516,1.3476193,639.45,638.99,0.31299394]
[1739313232716,1.3476193,639.44,638.99,0.31299394]
[1739313232912,1.663,639.51,638.99,0.31299394]
[1739313233111,1.34739445,639.5,638.99,0.31299394]
[1739313233317,1.34739445,639.49,638.99,0.31299394]
[1739313233517,1.34739445,639.48,638.99,0.31299394]
[1739313233718,1.34739445,639.47,638.99,0.31299394]
[1739313234018,1.34739445,639.46,638.99,0.31299394]
[1739313234218,1.34739445,639.45,638.99,0.31299394]
[1739313234419,1.34739445,639.44,638.99,0.31299394]
[1739313234615,1.34716802,639.43,638.99,0.31299394]
[1739313234918,1.663,639.51,638.99,0.31299394]
[1739313235122,1.34716524,639.5,638.99,0.31299394]
[1739313235320,1.34716524,639.49,638.99,0.31299394]
[1739313235519,1.34716524,639.48,638.99,0.31299394]
[1739313235714,1.34706513,639.47,638.99,0.31299394]
[1739313235919,1.34706513,639.46,638.99,0.31299394]
[1739313236119,1.34706513,639.45,638.99,0.31299394]
[1739313236312,1.34706513,639.44,638.99,0.31299394]
[1739313236514,1.34697555,639.43,638.99,0.31299394]
[1739313236711,1.663,639.51,638.99,0.31299394]
[1739313236916,1.34697556,639.5,638.99,0.31299394]
[1739313237120,1.34697556,639.49,638.99,0.31299394]
[1739313237319,1.34697115,639.48,638.99,0.31299394]
[1739313237515,1.34697115,639.47,638.99,0.31299394]
[1739313237714,1.34697115,639.46,638.99,0.31299394]
[1739313237915,1.34697115,639.45,638.99,0.31299394]
[1739313238118,1.34697115,639.44,638.99,0.31299394]
[1739313238315,1.34697115,639.43,638.99,0.31299394]
[1739313238620,1.663,639.51,638.99,0.31299394]
[1739313238820,1.34674552,639.5,638.99,0.31299394]
[1739313239020,1.34674552,639.49,638.99,0.31299394]
[1739313239213,1.34674552,639.48,638.99,0.31299394]
[1739313239418,1.34674552,639.47,638.99,0.31299394]
[1739313239619,1.34674552,639.46,638.99,0.31299394]
[1739313239820,1.34674552,639.45,638.99,0.31299394]
[1739313240021,1.34674552,639.44,638.99,0.31299394]
[1739313240222,1.34674552,639.43,638.99,0.31299394]
[1739313240521,1.34674552,639.42,638.99,0.31299394]
[1739313240723,0.658,639.45,638.99,0.31299394]
[1739313240925,1.34664049,639.44,638.99,0.31299394]
[1739313241218,1.34664049,639.43,638.99,0.31299394]
[1739313241418,1.34664049,639.42,638.99,0.31299394]
[1739313241623,1.34664049,639.41,638.99,0.31299394]
[1739313241817,0.658,639.45,638.99,0.31299394]
[1739313242019,1.3466164,639.44,638.99,0.31299394]
[1739313242220,1.3466164,639.43,638.99,0.31299394]
[1739313242429,1.3466164,639.42,638.99,0.31299394]
[1739313242722,1.3466164,639.41,638.99,0.31299394]
[1739313242920,0.658,639.45,638.99,0.31299394]
[1739313243115,1.34660459,639.44,638.99,0.31299394]
[1739313243316,1.34660459,639.43,638.99,0.31299394]
[1739313243519,1.34660459,639.42,638.99,0.31299394]
[1739313243723,1.34660459,639.41,638.99,0.31299394]
[1739313243922,1.177,639.44,638.99,0.31299394]
[1739313244223,1.34666087,639.43,638.99,0.31299394]
[1739313244416,1.34666087,639.42,638.99,0.31299394]
[1739313244619,1.177,639.44,638.99,0.31299394]
[1739313244822,1.3467122,639.43,638.99,0.31299394]
[1739313245020,1.3467122,639.42,638.99,0.31299394]
[1739313245218,1.3467122,639.41,638.99,0.31299394]
[1739313245418,1.177,639.44,638.99,0.31299394]
[1739313245619,1.34678075,639.43,638.99,0.31299394]
[1739313245821,1.177,639.44,638.99,0.31299394]
[1739313246024,1.34678055,639.43,638.99,0.31299394]
[1739313246216,1.177,639.44,638.99,0.31299394]
[1739313246524,1.34673446,639.43,638.99,0.31299394]
[1739313246718,1.177,639.44,638.99,0.31299394]
[1739313246921,1.34687879,639.43,638.99,0.31299394]
[1739313247223,1.177,639.44,638.99,0.31299394]
[1739313247424,1.34683845,639.43,638.99,0.31299394]
[1739313247619,1.177,639.44,638.99,0.31299394]
[1739313247824,1.34700225,639.43,638.99,0.31299394]
[1739313248019,1.34700225,639.42,638.99,0.31299394]
[1739313248220,1.177,639.44,638.99,0.31299394]
[1739313248422,1.34696644,639.43,638.99,0.31299394]
[1739313248624,1.34696644,639.42,638.99,0.31299394]
[1739313248825,1.177,639.44,638.99,0.31299394]
[1739313249025,1.34705629,639.43,638.99,0.31299394]
[1739313249221,1.34705629,639.42,638.99,0.31299394]
[1739313249525,1.177,639.44,638.99,0.31299394]
[1739313249722,1.3471527,639.43,638.99,0.31299394]
[1739313249921,1.3471527,639.42,638.99,0.31299394]
[1739313250127,1.177,639.44,638.99,0.31299394]
[1739313253326,1.835,639.44,638.99,0.31299394]
[1739313257929,1.835,639.44,639.0,1.13057641]
[1739313259430,1.835,639.44,638.99,0.31299394]
[1739313263936,0.658,639.44,638.99,0.31299394]
[1739313288958,0.658,639.44,639.02,1.13057641]
[1739313291555,0.658,639.44,638.99,0.31299394]
[1739313308286,1.35107225,639.43,638.99,0.31299394]
[1739313308482,1.35107225,639.42,638.99,0.31299394]
[1739313308682,1.35107225,639.41,638.99,0.31299394]
[1739313308885,1.35106841,639.4,638.99,0.31299394]
[1739313309188,0.881,639.49,638.99,0.31299394]
[1739313309388,1.35121249,639.48,638.99,0.31299394]
[1739313309688,1.35121249,639.47,638.99,0.31299394]
[1739313309883,1.35102524,639.46,638.99,0.31299394]
[1739313310082,1.35102524,639.45,638.99,0.31299394]
[1739313310287,1.35102524,639.44,638.99,0.31299394]
[1739313310486,1.35102524,639.43,638.99,0.31299394]
[1739313310688,1.35102524,639.42,638.99,0.31299394]
[1739313310891,1.35099703,639.41,638.99,0.31299394]
[1739313311090,0.658,639.47,638.99,0.31299394]
[1739313311389,1.35103062,639.46,638.99,0.31299394]
[1739313311587,1.35103062,639.45,638.99,0.31299394]
[1739313311788,1.35103062,639.44,638.99,0.31299394]
[1739313311989,1.35103062,639.43,638.99,0.31299394]
[1739313312183,0.658,639.47,638.99,0.31299394]
[1739313312184,1.35103062,639.42,638.99,0.31299394]
[1739313312389,1.35103062,639.41,638.99,0.31299394]
[1739313312585,1.35083166,639.4,638.99,0.31299394]
[1739313312891,0.658,639.47,638.99,0.31299394]
[1739313313089,1.35083919,639.46,638.99,0.31299394]
[1739313313286,1.35083919,639.45,638.82,1.13057641]
[1739313313484,1.35083919,639.44,638.82,1.13057641]
[1739313313791,1.35083919,639.43,638.75,1.13057641]
[1739313313989,1.35083919,639.42,638.75,1.13057641]
[1739313314185,1.35083919,639.41,638.75,1.13057641]
[1739313314390,1.35083919,639.4,638.75,1.13057641]
[1739313314690,1.35083919,639.39,638.75,1.13057641]
[1739313314989,1.35083919,639.38,638.75,1.13057641]
[1739313315185,1.35083919,639.37,638.75,1.13057641]
[1739313315384,1.35083919,639.36,638.75,1.13057641]
[1739313315589,1.34888771,639.35,638.75,1.13057641]
[1739313315890,1.34888771,639.34,638.75,1.13057641]
[1739313316083,1.34888771,639.33,638.75,1.13057641]
[1739313316287,1.34888771,639.32,638.75,1.13057641]
[1739313316489,1.34888771,639.31,638.75,1.13057641]
[1739313316687,1.34888771,639.3,638.75,1.13057641]
[1739313316888,1.34888771,639.29,638.54,1.13057641]
[1739313317188,1.34888771,639.28,638.55,0.31320961]
[1739313317388,1.34888771,639.27,638.55,0.31320961]
[1739313317588,1.34888771,639.26,638.55,0.31320961]
[1739313317790,1.34888771,639.25,638.55,0.31320961]
[1739313317991,1.34888771,639.24,638.55,0.31320961]
[1739313318194,1.34888771,639.23,638.55,0.31320961]
[1739313318393,1.34888771,639.22,638.55,0.31320961]
[1739313318586,1.34888771,639.21,638.55,0.31320961]
[1739313318787,0.658,639.47,638.55,0.31320961]
[1739313318788,1.34888771,639.2,638.55,0.31320961]
[1739313318985,0.658,639.47,638.55,0.31320961]
[1739313319186,1.34682659,639.46,638.55,0.31320961]
[1739313319392,1.34682659,639.45,638.55,0.31320961]
[1739313319592,1.34682659,639.44,638.55,0.31320961]
[1739313319792,1.34682659,639.43,638.55,0.31320961]
[1739313319993,1.34682659,639.42,638.55,0.31320961]
[1739313320186,1.34682659,639.41,638.55,0.31320961]
[1739313320391,1.34682659,639.4,638.55,0.31320961]
[1739313320590,1.34682659,639.39,638.55,0.31320961]
[1739313320795,1.34682659,639.38,638.55,0.31320961]
[1739313320994,1.34682659,639.37,638.55,0.31320961]
[1739313321194,1.34682659,639.36,638.55,0.31320961]
[1739313321389,1.34682659,639.35,638.55,0.31320961]
[1739313321592,1.34682659,639.34,638.55,0.31320961]
[1739313321896,1.34682659,639.33,638.55,0.31320961]
[1739313322094,0.881,639.49,638.55,0.31320961]
[1739313322095,1.34682659,639.32,638.55,0.31320961]
[1739313322295,1.34682659,639.31,638.55,0.31320961]
[1739313322488,0.881,639.49,638.55,0.31320961]
[1739313322489,1.34682659,639.3,638.55,0.31320961]
[1739313322692,1.34682659,639.29,638.55,0.31320961]
[1739313322895,1.34682659,639.28,638.55,0.31320961]
[1739313323096,1.34682659,639.27,638.55,0.31320961]
[1739313323296,1.34682659,639.26,638.55,0.31320961]
[1739313323497,1.34682659,639.25,638.55,0.31320961]
[1739313323795,1.34682659,639.24,638.55,0.31320961]
[1739313323995,1.34682659,639.23,638.55,0.31320961]
[1739313324197,1.34682659,639.22,638.55,0.31320961]